bitfinex-derivatives/quotes_ETHF0:USTF0_20251118
["timestamp","ask_amount","ask_price","bid_price","bid_amount"]
[1763487405085,0.51831,3127.5,3127.4,0.00292776]
[1763487406797,3.72611,3127.5,3127.4,0.00292776]
[1763487406991,3.72611,3127.5,3126.2,8.55895777]
[1763487406992,0.51851,3126.4,3126.1,3.72633]
[1763487407285,0.51851,3126.4,3126.2,0.51852]
[1763487407688,0.51851,3126.4,3126.1,3.2078]
[1763487407987,0.51851,3126.3,3126.1,0.0033164]
[1763487408585,3.2078,3126.2,3126.1,0.0033164]
[1763487410490,3.2078,3126.2,3126.1,1.64e-05]
[1763487411389,3.2078,3126.8,3126.6,0.51845]
[1763487411590,3.2078,3126.8,3126.7,0.5473]
[1763487413296,3.2078,3126.8,3126.6,0.86885]
[1763487413591,3.72623,3126.8,3126.6,0.3504]
[1763487413788,3.2078,3126.8,3126.6,0.86886]
[1763487414290,3.72623,3126.8,3126.6,0.3504]
[1763487414596,0.51849,3126.4,3126.2,0.3504]
[1763487414793,3.2078,3126.8,3126.4,0.51849]
[1763487415088,3.2078,3126.8,3126.7,1.06574]
[1763487416087,3.2078,3127.2,3127.1,1.06568]
[1763487416698,3.72616,3127.2,3126.6,0.3504]
[1763487416902,0.51839,3127.0,3126.8,0.51841]
[1763487417389,0.51844,3126.7,3126.6,0.86886]
[1763487417585,0.51843,3126.8,3126.6,0.86886]
[1763487417789,0.51843,3126.8,3126.7,0.51844]
[1763487418191,3.2078,3127.2,3126.6,0.3504]
[1763487418393,3.2078,3127.2,3127.0,0.51839]
[1763487418598,3.72617,3127.2,3127.0,0.51839]
[1763487418792,0.51838,3127.1,3127.0,0.51839]
[1763487419894,3.72616,3127.2,3127.1,0.51838]
[1763487420094,3.2078,3127.2,3126.6,0.3504]
[1763487420595,3.2078,3127.6,3127.5,1.11801]
[1763487420795,0.00230803,3127.9,3127.8,0.84686]
[1763487421300,0.00230803,3127.9,3127.8,1.44656]
[1763487421993,0.00230803,3127.9,3127.8,0.84686]
[1763487422993,0.00230803,3127.9,3127.8,1.44656]
[1763487423704,0.51804,3129.1,3129.0,0.3286]
[1763487424494,3.72584,3129.1,3129.0,0.3286]
[1763487424995,3.7287567,3129.1,3129.0,0.33126094]
[1763487425196,0.51814,3128.5,3128.4,0.3286]
[1763487425506,0.51829,3127.6,3127.1,0.51837]
[1763487425796,0.51843,3126.8,3126.6,0.3286]
[1763487425999,3.2078,3126.7,3126.6,0.3286]
[1763487426188,3.72908109,3126.7,3126.6,0.00255443]
[1763487427303,0.00284109,3126.7,3126.6,0.52101443]
[1763487428588,0.00284109,3126.7,3126.6,6.52101443]
[1763487428789,0.00284109,3126.7,3126.6,0.52101443]
[1763487428988,0.00284109,3126.7,3126.6,0.00255443]
[1763487428989,3.21064109,3126.7,3126.6,0.00255443]
[1763487429398,0.00284109,3126.7,3126.6,0.00255443]
[1763487429601,3.21064109,3126.7,3126.6,0.00255443]
[1763487429903,3.93406129,3126.7,3126.6,0.00255443]
[1763487431101,1.69218854,3127.3,3126.6,0.00255443]
[1763487431102,3.2078,3127.3,3126.9,0.3286]
[1763487431297,0.51832,3127.5,3127.2,0.51836]
[1763487431492,3.2078,3127.8,3127.0,3.2078]
[1763487431694,0.72391135,3127.7,3127.4,0.51832]
[1763487431895,3.2078,3127.8,3127.7,0.51828]
[1763487432097,3.21014973,3127.8,3127.7,0.51828]
[1763487432397,0.00234973,3127.8,3127.7,0.51828]
[1763487432798,0.00234973,3127.8,3127.6,0.3286]
[1763487432799,0.51828,3127.7,3127.6,0.3286]
[1763487433202,0.52060973,3127.8,3127.6,0.3286]
[1763487433404,0.51828,3127.7,3127.6,0.3286]
[1763487434199,0.52060973,3127.8,3127.7,0.51828]
[1763487434598,0.52060973,3127.8,3127.6,0.84689]
[1763487434803,0.51828,3127.7,3127.6,0.3286]
[1763487435293,3.72608,3127.7,3127.6,0.3286]
[1763487435499,0.51834,3127.3,3127.2,0.51834]
[1763487435694,3.2078,3127.7,3127.0,0.51839]
[1763487436005,3.2078,3127.3,3127.0,0.51839]
[1763487436210,0.51839,3127.0,3126.9,0.3286]
[1763487436903,0.51839,3127.0,3126.9,0.84701]
[1763487437106,0.00234973,3127.8,3127.7,1.11798]
[1763487437308,0.00234973,3127.8,3127.7,3.72608]
[1763487438901,0.00234973,3127.8,3127.7,3.2078]
[1763487439108,0.00234973,3127.8,3127.7,3.72608]
[1763487440300,0.52060973,3127.8,3127.7,3.72608]
[1763487440503,0.00234973,3127.8,3127.7,3.72608]
[1763487441415,0.00234973,3127.8,3127.7,4.28008]
[1763487442212,0.00479394,3128.1,3128.0,1.07223]
[1763487442411,0.00479394,3128.1,3128.0,0.51823]
[1763487442607,0.51824,3128.0,3127.9,0.51824]
[1763487443008,0.00479394,3128.1,3127.7,3.2078]
[1763487443205,0.00749972,3128.1,3128.0,0.51823]
[1763487443404,0.00749972,3128.1,3128.0,1.07223]
[1763487444107,3.2078,3128.6,3128.5,1.07214]
[1763487444617,3.72593,3128.6,3128.5,1.07214]
[1763487445114,3.72837343,3128.6,3128.5,1.07214]
[1763487445311,3.21024343,3128.6,3128.5,0.554]
[1763487445505,0.51816,3128.4,3128.3,0.3285]
[1763487445708,0.51818,3128.3,3128.2,0.00479394]
[1763487446713,0.51818,3128.3,3127.6,0.3286]
[1763487446714,0.51828,3127.7,3127.6,0.3286]
[1763487448015,0.51828,3127.7,3127.6,0.8826]
[1763487448618,3.2078,3128.5,3127.7,0.5886]
[1763487448822,0.51827,3127.8,3127.6,0.3286]
[1763487449419,0.51827,3127.8,3127.7,0.5886]
[1763487450123,0.51825,3128.0,3127.9,1.10682]
[1763487450324,0.51825,3128.0,3127.9,0.5886]
[1763487450517,0.51825,3128.0,3127.9,1.10684]
[1763487451422,0.51828,3127.7,3127.6,1.43549]
[1763487452125,0.51826,3127.9,3127.8,0.51825]
[1763487452323,3.2078,3128.5,3127.8,0.51825]
[1763487452725,0.51824,3128.0,3127.9,1.10683]
[1763487453529,3.72594,3128.5,3128.4,0.3323]
[1763487453713,4.4493556,3128.5,3128.4,0.3323]
[1763487453916,3.2078,3128.5,3128.4,1.43906]
[1763487454124,3.72594,3128.5,3128.4,1.43906]
[1763487455124,0.52057343,3128.6,3128.5,0.51814]
[1763487455420,0.00244343,3128.6,3128.5,4.31454]
[1763487455625,0.51801,3129.3,3129.2,0.51801]
[1763487455825,0.51804,3129.1,3129.0,0.3323]
[1763487456726,0.51814,3128.5,3128.4,0.3323]
[1763487456926,0.52060345,3129.1,3129.0,0.3323]
[1763487457629,0.00256345,3129.1,3129.0,1.43896]
[1763487458225,0.52060345,3129.1,3129.0,0.9209]
[1763487458419,0.51811,3128.7,3128.4,0.33560587]
[1763487458726,0.51814,3128.5,3128.4,0.92420587]
[1763487459928,0.51813,3128.6,3128.5,0.5886]
[1763487460327,3.2078,3129.0,3128.5,0.5886]
[1763487460630,0.51814,3128.5,3128.4,0.00330587]
[1763487460820,0.51814,3128.5,3128.4,0.33560587]
[1763487461021,3.2078,3129.0,3128.4,0.92420587]
[1763487461220,0.52060345,3129.1,3129.0,0.3323]
[1763487461418,0.51813,3128.6,3128.5,0.51814]
[1763487461620,0.51814,3128.5,3128.4,0.33560587]
[1763487462227,3.196,3128.4,3127.6,0.3286]
[1763487462433,0.51828,3127.7,3127.6,0.3286]
[1763487462616,3.196,3128.4,3127.6,0.3286]
[1763487462617,3.2078,3128.4,3127.6,0.3286]
[1763487462821,3.2078,3128.4,3127.9,1.10683]
[1763487462822,0.51824,3128.0,3127.9,1.10683]
[1763487463019,3.2078,3128.0,3127.6,0.3286]
[1763487463222,0.51828,3127.7,3127.6,0.33196244]
[1763487463628,0.51834,3127.3,3127.2,0.195885]
[1763487463925,3.72614,3127.3,3127.2,0.195885]
[1763487464723,3.72614,3127.3,3127.2,0.19831179]
[1763487465329,3.72614,3127.3,3127.2,0.00242679]
[1763487466030,3.72614,3127.3,3127.2,0.33472679]
[1763487466224,3.72614,3127.3,3127.2,0.00242679]
[1763487466625,3.72614,3127.3,3127.2,0.33472679]
[1763487467432,3.72614,3127.3,3127.2,0.85308679]
[1763487467735,3.2078,3127.3,3127.2,1.44168679]
[1763487469332,3.72614,3127.3,3127.2,0.92332679]
[1763487469534,3.72614,3127.3,3127.2,0.00242679]
[1763487469724,0.51844,3126.7,3126.6,0.3323]
[1763487470736,0.00413259,3126.7,3126.6,1.44301082]
[1763487470934,3.2078,3127.3,3127.2,1.43926]
[1763487471328,3.72614,3127.3,3127.2,1.43926]
[1763487471729,3.72614,3127.3,3127.2,0.9209]
[1763487472027,3.72911917,3127.3,3127.2,0.9209]
[1763487472236,3.72911917,3127.3,3127.2,0.3323]
[1763487472421,3.72911917,3127.3,3127.2,0.85066]
[1763487472730,3.21077917,3127.3,3127.2,1.43926]
[1763487472935,0.00479394,3127.6,3127.5,1.10691]
[1763487473733,0.52308394,3127.6,3127.5,0.5886]
[1763487474037,0.52532404,3127.6,3127.5,0.5886]
[1763487474340,0.52532404,3127.6,3127.5,1.10691]
[1763487474533,0.52532404,3127.6,3127.5,0.5886]
[1763487474733,0.00703404,3127.6,3127.5,1.10691]
[1763487475326,0.52532404,3127.6,3127.5,0.5886]
[1763487475737,0.51831,3127.5,3127.4,0.51831]
[1763487475936,0.51831,3127.5,3127.4,1.10691]
[1763487476232,0.52532404,3127.6,3127.4,1.10691]
[1763487476433,0.00703404,3127.6,3127.5,1.10691]
[1763487476625,0.52532404,3127.6,3127.5,1.10691]
[1763487476824,0.00703404,3127.6,3127.5,1.10691]
[1763487477231,0.00703404,3127.6,3127.2,0.9049]
[1763487477539,0.51831,3127.5,3127.4,0.5726]
[1763487477926,0.00703404,3127.6,3127.5,1.09091]
[1763487478338,0.52532404,3127.6,3127.5,1.09091]
[1763487478527,0.52532404,3127.6,3127.5,0.5726]
[1763487479332,0.52532404,3127.6,3127.5,1.09091]
[1763487479540,0.00703404,3127.6,3127.5,1.09091]
[1763487480142,3.404e-05,3127.6,3127.5,1.09091]
[1763487480638,3.72593,3128.6,3128.5,0.5726]
[1763487480846,3.2078,3128.6,3128.5,1.09074]
[1763487481136,3.72593,3128.6,3128.4,0.3514]
[1763487481333,3.19672256,3128.6,3128.5,1.09074]
[1763487481538,0.00479394,3128.9,3128.8,1.09069]
[1763487481843,0.52595996,3128.9,3128.8,0.00261154]
[1763487482533,0.00787996,3128.9,3128.8,1.09330154]
[1763487482733,0.52595996,3128.9,3128.8,0.57521154]
[1763487482937,0.00787996,3128.9,3128.8,0.57521154]
[1763487483236,0.00787996,3128.9,3128.8,1.09330154]
[1763487483934,0.00787996,3128.9,3128.8,0.57521154]
[1763487484532,3.2078,3129.4,3129.3,0.5726]
[1763487485234,3.2078,3129.9,3129.8,0.5726]
[1763487485430,2.23406153,3131.2,3130.2,0.3514]
[1763487485431,3.2078,3130.3,3130.2,0.3514]
[1763487485637,6.80709959,3132.0,3130.2,0.3514]
[1763487485638,0.51783,3130.4,3130.2,0.3514]
[1763487486332,0.52066224,3130.4,3130.2,0.3514]
[1763487486536,3.72846224,3130.4,3130.2,0.3514]
[1763487488344,0.51788,3130.1,3130.0,0.00479394]
[1763487488839,0.51785,3130.3,3130.2,0.86926]
[1763487489035,0.51785,3130.3,3130.2,0.3514]
[1763487489444,0.51785,3130.3,3130.2,0.924]
[1763487489641,3.72846224,3130.4,3130.2,0.924]
[1763487489940,3.72846224,3130.4,3130.2,0.3514]
[1763487491941,0.51788,3130.1,3130.0,0.00479394]
[1763487492242,0.51794,3129.7,3129.6,0.3514]
[1763487492437,0.51804,3129.1,3129.0,3.5592]
[1763487492630,3.2078,3129.7,3129.6,0.3514]
[1763487492831,0.51804,3129.1,3129.0,0.3514]
[1763487493038,3.72584,3129.1,3129.0,0.3514]
[1763487493240,0.51808,3128.9,3128.7,0.00479394]
[1763487494244,3.2078,3129.1,3129.0,0.924]
[1763487494642,3.2078,3129.1,3129.0,0.3514]
[1763487496144,3.72584,3129.1,3129.0,0.3514]
[1763487496344,3.72584,3129.1,3129.0,0.924]
[1763487496534,3.72584,3129.1,3129.0,0.3514]
[1763487499051,3.72584,3129.1,3129.0,0.924]
[1763487499252,3.2078,3129.1,3129.0,1.44206]
[1763487499752,0.51798,3129.5,3129.4,1.09058]
[1763487499955,3.2078,3130.0,3129.6,0.86935]
[1763487500159,0.51795,3129.7,3129.6,1.44195]
[1763487500545,3.2078,3130.0,3129.7,1.05844]
[1763487500847,3.2078,3130.0,3129.9,1.05841]
[1763487501456,0.51785,3130.3,3130.2,0.3359]
[1763487501662,0.00283224,3130.4,3130.3,1.05835]
[1763487501850,0.52066224,3130.4,3130.3,1.05835]
[1763487502161,0.00283224,3130.4,3130.3,4.26615]
[1763487502350,0.00479394,3130.6,3130.5,1.05831]
[1763487503552,0.00835385,3130.6,3130.5,1.05831]
[1763487503751,0.51782,3130.5,3130.2,0.85375]
[1763487503953,0.51783,3130.4,3130.3,1.05834]
[1763487504380,0.52616385,3130.6,3130.5,0.5405]
[1763487505058,0.00835385,3130.6,3130.5,0.5405]
[1763487505256,0.52615385,3130.6,3130.5,0.5405]
[1763487505653,0.51783,3130.5,3130.3,3.2078]
[1763487505852,0.51783,3130.5,3130.4,0.51783]
[1763487506156,0.00835385,3130.6,3130.5,1.05831]
[1763487506362,0.51768,3131.3,3131.0,0.51771]
[1763487506559,3.2078,3131.7,3131.6,1.05813]
[1763487506862,3.2078,3132.1,3132.0,0.3359]
[1763487507061,1.12812569,3133.0,3132.0,0.3359]
[1763487507264,0.51747,3132.6,3132.4,0.5405]
[1763487507452,0.00479394,3132.8,3132.6,0.3382]
[1763487507960,0.51745,3132.7,3132.6,0.3382]
[1763487508157,0.52222394,3132.8,3132.6,0.3382]
[1763487508561,0.52222394,3132.8,3132.7,3.2078]
[1763487508862,0.52222394,3132.8,3132.7,3.7704]
[1763487508863,0.00479394,3132.8,3132.7,3.7704]
[1763487510656,3.2078,3133.6,3132.7,3.7704]
[1763487510657,3.2078,3133.6,3133.2,0.85556]
[1763487510856,0.51734,3133.4,3133.3,0.5626]
[1763487511267,3.2078,3133.6,3133.3,0.5626]
[1763487511562,0.51732,3133.5,3133.3,0.5626]
[1763487511954,3.2078,3134.2,3133.3,0.5626]
[1763487511955,3.2078,3135.0,3133.7,0.5626]
[1763487512155,0.51711,3134.8,3134.7,0.5626]
[1763487512354,0.5171,3134.9,3134.7,0.5626]
[1763487512560,11.08025981,3135.4,3135.0,0.3382]
[1763487512561,3.2078,3135.4,3135.0,0.3382]
[1763487512755,3.2078,3136.6,3135.1,0.51704]
[1763487512955,0.5169,3136.0,3135.9,3.2078]
[1763487513759,0.51697,3135.6,3135.5,0.00478599]
[1763487515458,0.51696,3135.7,3135.5,0.00478599]
[1763487515667,0.00478599,3136.2,3136.0,0.3382]
[1763487515668,0.51689,3136.1,3136.0,0.3382]
[1763487516261,0.51695,3135.7,3135.6,3.2078]
[1763487516660,0.00478599,3136.2,3135.6,3.2078]
[1763487516964,0.52165599,3136.2,3136.1,0.5626]
[1763487517664,0.00478599,3136.2,3136.1,0.5626]
[1763487517866,0.51915359,3136.6,3136.5,0.5626]
[1763487518059,0.51683,3136.5,3136.1,3.2078]
[1763487518254,0.00234359,3136.6,3136.1,3.2078]
[1763487518568,0.51683,3136.5,3136.1,3.72468]
[1763487518868,0.00234359,3136.6,3136.5,0.5626]
[1763487519161,0.51687,3136.2,3136.1,0.5626]
[1763487519380,0.51683,3136.5,3136.4,0.5626]
[1763487519567,0.00234359,3136.6,3136.5,0.5626]
[1763487519762,0.00234359,3136.6,3136.1,3.2078]
[1763487519763,0.51697,3135.6,3135.5,0.00478599]
[1763487519963,3.72477,3135.6,3135.5,0.00478599]
[1763487520164,3.2078,3135.6,3135.5,0.00478599]
[1763487521563,3.2078,3135.6,3134.4,3.546]
[1763487521564,0.51704,3135.2,3134.5,3.2078]
[1763487521762,3.72484,3135.2,3134.5,3.72495]
[1763487522160,3.72484,3135.2,3134.6,0.51713]
[1763487522363,3.72484,3135.2,3134.5,3.2078]
[1763487522660,3.2078,3135.2,3135.0,0.51706]
[1763487522864,3.2078,3135.2,3134.8,0.00478599]
[1763487523466,3.72484,3135.2,3134.8,0.00478599]
[1763487524563,1.72495,3135.2,3134.4,0.3382]
[1763487524865,1.72495,3135.2,3134.1,3.2078]
[1763487525568,0.51717,3134.4,3134.3,0.00478599]
[1763487525767,0.52012898,3134.4,3134.3,0.00478599]
[1763487526267,0.86162898,3134.4,3134.3,0.00478599]
[1763487527260,0.52012898,3134.4,3134.3,0.00478599]
[1763487527460,1.72792898,3134.7,3134.3,0.00478599]
[1763487527668,0.85867,3134.4,3134.3,0.00478599]
[1763487527867,0.51717,3134.4,3134.3,0.00478599]
[1763487528477,0.52008937,3134.4,3134.3,0.00478599]
[1763487529372,0.86158937,3134.4,3134.3,0.00478599]
[1763487533775,0.8587,3134.2,3134.1,0.00407249]
[1763487534274,0.8587,3134.2,3132.6,2.43]
[1763487534275,0.85003,3133.4,3133.3,3.2078]
[1763487535171,3.2078,3134.2,3134.1,1.07982]
[1763487535372,0.51706,3135.1,3134.9,0.5626]
[1763487535569,3.4173,3135.6,3134.9,0.5626]
[1763487535769,0.51707,3135.0,3134.8,3.2078]
[1763487536077,3.4173,3135.6,3134.8,3.2078]
[1763487536078,0.51709,3134.9,3134.8,3.2078]
[1763487536275,0.00478599,3135.2,3134.8,3.7249]
[1763487536574,0.00089134,3135.2,3135.1,1.07965]
[1763487536776,0.51793134,3135.2,3135.1,0.5626]
[1763487536975,0.51705,3135.1,3134.8,3.2078]
[1763487537174,0.00089134,3135.2,3134.9,0.51709]
[1763487537481,0.51709,3134.9,3134.8,3.2078]
[1763487538785,1.16189,3134.9,3134.8,3.2078]
[1763487538975,0.6448,3134.9,3134.8,3.2078]
[1763487539275,1.87031831,3134.9,3134.8,3.2078]
[1763487540267,0.00758266,3135.2,3135.1,1.11455]
[1763487540677,0.517,3135.5,3135.4,0.51699]
[1763487540873,0.70911802,3135.8,3134.8,3.2078]
[1763487541177,0.51707,3135.0,3134.8,3.2078]
[1763487541377,0.51708,3135.0,3134.9,0.51709]
[1763487541584,0.51709,3134.9,3134.8,3.2078]
[1763487541778,1.87099064,3134.9,3134.8,3.2078]
[1763487543889,1.22619064,3134.9,3134.8,3.2078]
[1763487544073,1.22619064,3134.9,3134.8,3.7249]
[1763487544479,1.22619064,3134.9,3134.8,4.3224]
[1763487544794,0.70910064,3134.9,3134.8,4.3224]
[1763487544978,1.22619064,3134.9,3134.8,3.8053]
[1763487545174,1.22619064,3134.9,3134.8,3.2078]
[1763487545380,0.70910064,3134.9,3134.8,4.3224]
[1763487545582,0.52100526,3135.0,3134.9,1.11459]
[1763487545889,0.51709,3134.9,3134.8,3.7249]
[1763487546385,0.51709,3134.9,3134.8,3.2078]
[1763487546984,1.22746403,3134.9,3134.8,3.2078]
[1763487547187,1.87226403,3134.9,3134.8,3.2078]
[1763487548784,0.71037403,3134.9,3134.8,3.8053]
[1763487549084,1.87226403,3134.9,3134.8,3.2078]
[1763487549786,0.51713,3134.6,3134.5,0.00478599]
[1763487549990,0.51713,3134.6,3133.4,1.71756625]
[1763487549991,1.16202,3134.1,3134.0,3.2078]
[1763487550285,1.16202,3134.1,3133.3,0.52011538]
[1763487550286,1.1621,3133.6,3133.3,0.00276538]
[1763487550479,1.87247403,3133.6,3133.3,0.00276538]
[1763487550680,0.71037403,3133.6,3133.5,1.31331]
[1763487550983,5.47663986,3134.8,3133.9,0.51724]
[1763487551182,5.47663986,3134.8,3133.5,0.19849]
[1763487551183,1.16202,3134.1,3134.0,3.2078]
[1763487551489,1.87373857,3134.1,3134.0,3.2078]
[1763487551689,0.5173,3133.6,3133.5,3.40629]
[1763487551891,0.5173,3133.6,3133.5,3.92361]
[1763487552088,0.5173,3133.6,3133.5,3.40629]
[1763487552285,1.87367928,3133.6,3133.5,3.40629]
[1763487552481,0.71157928,3133.6,3133.5,4.52111]
[1763487552788,0.51717,3134.5,3134.4,1.47647]
[1763487552995,0.51717,3134.5,3134.4,4.68427]
[1763487553594,0.51717,3134.5,3134.4,4.1671]
[1763487553794,0.51717,3134.5,3134.4,3.2078]
[1763487554002,1.16197,3134.5,3134.4,3.2078]
[1763487554204,0.51717,3134.5,3134.4,3.2078]
[1763487554388,0.51717,3134.5,3134.4,3.72497]
[1763487554585,0.51717,3134.5,3134.4,3.2078]
[1763487554796,1.16197,3134.5,3134.4,3.2078]
[1763487555196,0.51717,3134.5,3134.4,3.2078]
[1763487555390,1.16197,3134.5,3134.4,3.2078]
[1763487557090,0.6448,3134.1,3134.0,3.2078]
[1763487557402,0.51722,3134.1,3134.0,3.2078]
[1763487557798,1.16202,3134.1,3134.0,3.2078]
[1763487558001,0.5173,3133.6,3133.5,3.40629]
[1763487559294,0.5173,3133.6,3133.5,4.52111]
[1763487559494,0.5173,3133.6,3133.5,3.40629]
[1763487559699,1.1621,3133.6,3133.5,3.40629]
[1763487559903,3.2078,3134.2,3133.5,3.40629]
[1763487560104,0.5173,3133.6,3133.5,3.40629]
[1763487560304,0.3359,3134.4,3133.5,3.40629]
[1763487560305,0.51729,3133.7,3133.6,1.16338]
[1763487560506,0.51727,3133.8,3133.7,1.16336]
[1763487560802,0.51724,3134.0,3133.9,1.16335]
[1763487561101,0.51724,3134.0,3133.9,4.37115]
[1763487561297,0.51724,3134.0,3133.9,3.8539]
[1763487561698,1.20234,3134.0,3133.9,3.2078]
[1763487562807,0.51724,3134.0,3133.9,3.8539]
[1763487563310,0.51724,3134.0,3133.9,3.2078]
[1763487563803,1.20234,3134.0,3133.9,3.2078]
[1763487564430,3.2078,3134.6,3133.7,1.16338]
[1763487564431,0.51729,3133.8,3133.7,1.16338]
[1763487564597,0.5173,3133.6,3133.5,3.40629]
[1763487564797,1.2024,3133.6,3133.5,3.40629]
[1763487564998,0.5173,3133.6,3133.5,3.40629]
[1763487565602,0.5173,3133.6,3133.5,4.05239]
[1763487566309,0.5173,3133.6,3133.5,3.40629]
[1763487568108,1.2024,3133.6,3133.5,0.19849]
[1763487568312,1.91057272,3133.6,3133.5,0.19849]
[1763487568513,1.22547272,3133.6,3133.5,0.19849]
[1763487568807,0.5173,3133.6,3133.5,0.83729]
[1763487569813,1.39649646,3133.6,3133.3,0.00276538]
[1763487570005,1.20545,3133.3,3133.2,0.00478599]
[1763487570203,5.12164646,3133.3,3133.2,0.00478599]
[1763487570405,4.43354646,3133.3,3133.2,1.04348599]
[1763487570604,3.72515,3133.3,3133.2,1.04348599]
[1763487571014,3.72515,3133.3,3133.2,1.04677824]
[1763487571211,1.22576167,3133.3,3133.2,1.04677824]
[1763487571402,0.51735,3133.3,3133.2,1.04677824]
[1763487573414,0.00478599,3133.6,3133.5,1.15612]
[1763487573714,3.97094043,3135.1,3134.1,1.156]
[1763487573715,0.51722,3134.2,3134.1,1.156]
[1763487573907,0.5172,3134.2,3134.1,3.2078]
[1763487574107,0.5172,3134.2,3134.1,3.8466]
[1763487574510,0.00478599,3134.5,3134.4,0.3999]
[1763487574808,0.52193599,3134.5,3134.4,1.0387]
[1763487577416,0.00393526,3135.0,3134.9,1.15589]
[1763487577614,0.00393526,3135.0,3134.9,4.36369]
[1763487577921,0.70833629,3135.9,3135.4,0.6388]
[1763487578116,3.2078,3136.5,3135.6,0.3999]
[1763487578117,0.51697,3135.7,3135.6,0.3999]
[1763487578317,0.51697,3135.7,3135.6,1.0387]
[1763487579022,0.00296057,3135.7,3135.6,1.55859046]
[1763487579223,0.00318535,3136.0,3135.9,1.15572]
[1763487579522,0.52008535,3136.0,3135.9,3.8466]
[1763487579915,0.52008535,3136.0,3135.9,3.2078]
[1763487580218,0.51695,3135.7,3135.6,1.04162046]
[1763487581209,0.51695,3135.7,3135.6,1.55859046]
[1763487581616,0.51695,3135.7,3135.6,1.04162046]
[1763487582519,0.00549463,3136.0,3135.9,0.6388]
[1763487582720,0.5169,3136.0,3135.9,3.8466]
[1763487583420,0.51682,3136.6,3136.5,0.6388]
[1763487583615,0.51687,3136.2,3136.1,3.2078]
[1763487583825,0.51687,3136.2,3136.1,3.8466]
[1763487586619,0.51687,3136.2,3136.1,4.36349]
[1763487587023,0.52008978,3136.6,3136.5,1.15562]
[1763487587222,0.52008978,3136.6,3136.5,3.8466]
[1763487588620,0.52008978,3136.6,3136.5,0.6388]
[1763487588924,0.00326978,3136.6,3136.5,4.36342]
[1763487589123,0.52007978,3136.6,3136.5,3.8466]
[1763487590230,0.00326978,3136.6,3136.5,4.36342]
[1763487590520,0.51677,3136.9,3136.8,1.55547]
[1763487590724,3.2078,3137.5,3136.8,1.0387]
[1763487590926,3.2078,3137.5,3137.1,0.6388]
[1763487591128,0.51671,3137.2,3137.1,0.6388]
[1763487591326,0.51666,3137.5,3137.4,0.91657]
[1763487591524,0.51950134,3137.5,3137.4,1.55537]
[1763487592220,1.70157322,3139.1,3139.0,0.6388]
[1763487592423,1.38871157,3139.1,3139.0,3.2078]
[1763487592619,0.92869,3139.2,3138.7,0.00478599]
[1763487592620,0.6881,3138.8,3138.7,0.00478599]
[1763487592931,0.51656,3138.2,3138.0,3.2078]
[1763487593125,0.00312725,3138.2,3138.0,3.61091421]
[1763487593432,0.51649,3138.6,3138.5,0.6388]
[1763487593727,0.51646,3138.8,3138.7,0.6388]
[1763487594327,0.51957877,3138.8,3138.7,0.6388]
[1763487594922,0.00478599,3138.9,3138.7,0.6388]
[1763487595128,0.3359,3139.8,3139.0,0.6388]
[1763487595325,0.3359,3139.8,3139.1,3.2078]
[1763487595526,0.51638,3139.2,3139.1,3.8466]
[1763487595721,0.51638,3139.2,3139.1,3.2078]
[1763487595921,0.51638,3139.2,3138.2,0.00478599]
[1763487595922,0.51653,3138.3,3138.2,0.00478599]
[1763487596325,0.51653,3138.3,3138.2,0.64358599]
[1763487596525,0.51651,3138.4,3138.3,0.6388]
[1763487597725,0.51651,3138.4,3138.2,3.21258599]
[1763487598328,0.51651,3138.4,3138.3,0.8449]
[1763487598628,0.51652,3138.3,3138.2,3.21258599]
[1763487599023,0.51652,3138.3,3138.2,4.05748599]
[1763487599224,0.51652,3138.3,3138.2,3.21258599]
[1763487599921,0.51652,3138.3,3138.2,0.00478599]
[1763487600532,0.51652,3138.3,3138.2,3.21258599]
[1763487601422,0.51652,3138.3,3138.2,4.05748599]
[1763487601820,3.2102605,3139.2,3138.4,0.8449]
[1763487602020,0.51649,3138.5,3138.4,0.8449]
[1763487602218,0.51652,3138.3,3138.2,3.21258599]
[1763487602628,0.51656,3138.1,3138.0,0.00321421]
[1763487602834,6.51656,3138.1,3138.0,1.421e-05]
[1763487603033,0.51666,3137.5,3137.4,3.6077]
[1763487603328,0.51662,3137.7,3137.6,0.8449]
[1763487603533,3.2078,3138.4,3137.4,3.6077]
[1763487603534,3.2078,3138.4,3138.0,0.4784]
[1763487603733,0.51656,3138.1,3138.0,1.3233]
[1763487604129,0.0024605,3139.2,3138.3,1.36141]
[1763487604434,0.51644,3138.8,3138.7,4.0527]
[1763487604823,0.0024605,3139.2,3139.1,0.8449]
[1763487604824,0.5188405,3139.2,3139.1,0.8449]
[1763487605030,0.5188405,3139.2,3139.1,4.0527]
[1763487605326,0.5188405,3139.2,3138.7,3.2078]
[1763487605327,0.51644,3138.8,3138.7,3.2078]
[1763487605523,0.51644,3138.8,3138.7,4.0527]
[1763487605724,0.5188405,3139.2,3139.1,0.8449]
[1763487605928,0.5188405,3139.2,3139.1,4.0527]
[1763487606630,0.5188405,3139.2,3139.1,3.2078]
[1763487606936,0.5188405,3139.2,3139.1,4.0527]
[1763487607136,0.51644,3138.8,3138.7,4.0527]
[1763487607331,0.51644,3138.8,3138.7,3.2078]
[1763487607727,0.51644,3138.8,3138.7,4.0527]
[1763487608528,6.3978,3137.8,3135.6,0.4784]
[1763487608728,0.51699,3135.5,3135.4,2.5588]
[1763487609330,3.2078,3135.7,3135.4,2.5588]
[1763487609531,3.72754669,3135.7,3135.4,2.56284916]
[1763487609832,0.51698,3135.6,3135.4,2.56284916]
[1763487610229,0.51702,3135.3,3135.2,0.0047782]
[1763487610427,0.51715,3134.5,3134.4,0.4784]
[1763487610632,3.72495,3134.5,3134.4,0.4784]
[1763487610830,3.72495,3134.5,3133.2,0.73668391]
[1763487610831,0.51725,3133.9,3133.2,3.6862]
[1763487611028,0.51725,3133.9,3133.4,0.51733]